fUST/lending_fUST_20250819
["ID","MTS","AMOUNT","RATE_DAILY","PERIOD"]
[380117337,1755551444210,-420.87520185,0.00019452,2]
[380117338,1755551444220,-480.0,0.00019452,2]
[380117339,1755551444229,-480.0,0.00019452,2]
[380117340,1755551444239,-480.0,0.00019452,2]
[380117341,1755551444250,-556.17070994,0.00019452,2]
[380117342,1755551444260,-480.0,0.00019452,2]
[380117343,1755551444270,-480.0,0.00019452,2]
[380117344,1755551444280,-480.0,0.00019452,2]
[380117345,1755551444290,-480.0,0.00019452,2]
[380117346,1755551444300,-480.0,0.00019452,2]
[380117348,1755551444310,-480.0,0.00019452,2]
[380117349,1755551444320,-480.0,0.00019452,2]
[380117351,1755551444329,-480.0,0.00019452,2]
[380117352,1755551444339,-480.0,0.00019452,2]
[380117353,1755551444348,-480.0,0.00019452,2]
[380117354,1755551444358,-444.0208041,0.00019452,2]
[380117355,1755551444367,-480.0,0.00019452,2]
[380117356,1755551444377,-480.0,0.00019452,2]
[380117357,1755551444387,-503.47,0.00019452,2]
[380117358,1755551444396,-480.0,0.00019452,2]
[380117359,1755551444405,-278.92,0.00019452,2]
[380117360,1755551444414,-480.0,0.00019452,2]
[380117361,1755551444423,-480.0,0.00019452,2]
[380117362,1755551444433,-480.0,0.00019452,2]
[380117363,1755551444442,-480.0,0.00019452,2]
[380117364,1755551444453,-480.0,0.00019452,2]
[380117365,1755551444462,-564.23376251,0.00019452,2]
[380117366,1755551444471,-480.0,0.00019452,2]
[380117368,1755551444481,-480.0,0.00019452,2]
[380117369,1755551444492,-480.0,0.00019452,2]
[380117370,1755551444502,-480.0,0.00019452,2]
[380117371,1755551444513,-480.0,0.00019452,2]
[380117372,1755551444523,-315.12225595,0.00019452,2]
[380117373,1755551444532,-480.0,0.00019452,2]
[380117374,1755551444542,-480.0,0.00019452,2]
[380117375,1755551444551,-480.0,0.00019452,2]
[380117376,1755551444560,-480.0,0.00019452,2]
[380117377,1755551444569,-480.0,0.00019452,2]
[380117378,1755551444579,-481.23,0.00019452,2]
[380117379,1755551444589,-480.0,0.00019452,2]
[380117380,1755551444599,-491.7073144,0.00019452,2]
[380117381,1755551444609,-480.0,0.00019452,2]
[380117382,1755551444618,-480.0,0.00019452,2]
[380117383,1755551444627,-480.0,0.00019452,2]
[380117384,1755551444636,-480.0,0.00019452,2]
[380117385,1755551444646,-480.0,0.00019452,2]
[380117386,1755551444655,-480.0,0.00019452,2]
[380117387,1755551444665,-480.0,0.00019452,2]
[380117388,1755551444674,-480.0,0.00019452,2]
[380117389,1755551444683,-480.0,0.00019452,2]
[380117390,1755551444693,-480.0,0.00019452,2]
[380117391,1755551444702,-480.0,0.00019452,2]
[380117392,1755551444711,-480.0,0.00019452,2]
[380117393,1755551444721,-480.0,0.00019452,2]
[380117394,1755551444730,-480.0,0.00019452,2]
[380117395,1755551444739,-480.0,0.00019452,2]
[380117396,1755551444749,-539.47,0.00019452,2]
[380117397,1755551444758,-480.0,0.00019452,2]
[380117398,1755551444767,-480.0,0.00019452,2]
[380117399,1755551444777,-480.0,0.00019452,2]
[380117400,1755551444786,-480.0,0.00019452,2]
[380117401,1755551444796,-480.0,0.00019452,2]
[380117402,1755551444806,-480.0,0.00019452,2]
[380117403,1755551444815,-480.0,0.00019452,2]
[380117404,1755551444824,-480.0,0.00019452,2]
[380117405,1755551444833,-480.0,0.00019452,2]
[380117406,1755551444843,-480.0,0.00019452,2]
[380117407,1755551444852,-480.0,0.00019452,2]
[380117408,1755551444861,-480.0,0.00019452,2]
[380117409,1755551444871,-480.0,0.00019452,2]
[380117410,1755551444880,-480.0,0.00019452,2]
[380117411,1755551444890,-480.0,0.00019452,2]
[380117412,1755551444900,-561.34,0.00019452,2]
[380117413,1755551444909,-480.0,0.00019452,2]
[380117414,1755551444918,-480.0,0.00019452,2]
[380117415,1755551444927,-480.0,0.00019452,2]
[380117416,1755551444937,-480.0,0.00019452,2]
[380117417,1755551444946,-480.0,0.00019452,2]
[380117418,1755551444956,-480.0,0.00019452,2]
[380117419,1755551444966,-480.0,0.00019452,2]
[380117420,1755551444976,-496.2595513,0.00019452,2]
[380117421,1755551444986,-480.0,0.00019452,2]
[380117422,1755551444995,-480.0,0.00019452,2]
[380117423,1755551445005,-480.0,0.00019452,2]
[380117424,1755551445015,-480.0,0.00019452,2]
[380117425,1755551445025,-480.0,0.00019452,2]
[380117426,1755551445035,-480.0,0.00019452,2]
[380117427,1755551445044,-480.0,0.00019452,2]
[380117428,1755551445053,-480.0,0.00019452,2]
[380117429,1755551445062,-480.0,0.00019452,2]
[380117430,1755551445075,-480.0,0.00019452,2]
[380117431,1755551445085,-480.0,0.00019452,2]
[380117432,1755551445095,-480.0,0.00019452,2]
[380117433,1755551445105,-480.0,0.00019452,2]
[380117434,1755551445113,-480.0,0.00019452,2]
[380117435,1755551445124,-444.72883789,0.00019452,2]
[380117436,1755551445134,-480.0,0.00019452,2]
[380117437,1755551445143,-480.0,0.00019452,2]
[380117438,1755551445155,-480.0,0.00019452,2]
[380117439,1755551445165,-464.95425649,0.00019452,2]
[380117440,1755551445174,-480.0,0.00019452,2]
[380117441,1755551445183,-480.0,0.00019452,2]
[380117442,1755551445193,-480.0,0.00019452,2]
[380117443,1755551445202,-480.0,0.00019452,2]
[380117444,1755551445211,-271.26435825,0.00019452,2]
[380117445,1755551445221,-506.71,0.00019452,2]
[380117446,1755551445231,-480.0,0.00019452,2]
[380117447,1755551445241,-480.0,0.00019452,2]
[380117448,1755551445252,-480.0,0.00019452,2]
[380117449,1755551445261,-480.0,0.00019452,2]
[380117450,1755551445271,-480.0,0.00019452,2]
[380117451,1755551445282,-480.0,0.00019452,2]
[380117452,1755551445291,-480.0,0.00019452,2]
[380117453,1755551445301,-480.0,0.00019452,2]
[380117454,1755551445310,-480.0,0.00019452,2]
[380117455,1755551445319,-461.13581046,0.00019452,2]
[380117456,1755551445420,-480.0,0.00019452,2]
[380117457,1755551445430,-480.0,0.00019452,2]
[380117458,1755551445440,-480.0,0.00019452,2]
[380117459,1755551445451,-480.0,0.00019452,2]
[380117460,1755551445460,-480.0,0.00019452,2]
[380117461,1755551445469,-200.0,0.00019561,20]
[380117462,1755551445479,-200.0,0.00019561,20]
[380117463,1755551445490,-200.0,0.00019561,20]
[380117464,1755551445501,-200.0,0.00019561,20]
[380117465,1755551445511,-200.0,0.00019561,20]
[380117466,1755551445521,-200.0,0.00019561,20]
[380117467,1755551445531,-200.0,0.00019561,20]
[380117468,1755551445540,-200.0,0.00019561,20]
[380117469,1755551445550,-200.0,0.00019561,20]
[380117470,1755551445560,-200.0,0.00019561,20]
[380117471,1755551445569,-600.0,0.00019561,20]
[380117472,1755551445579,-480.0,0.00019726,2]
[380117473,1755551445589,-480.0,0.00019726,2]
[380117474,1755551445598,-480.0,0.00019726,2]
[380117475,1755551445608,-480.0,0.00019726,2]
[380117476,1755551445617,-558.94,0.00019726,2]
[380117477,1755551445627,-480.0,0.00019726,2]
[380117478,1755551445636,-480.0,0.00019726,2]
[380117479,1755551445646,-480.0,0.00019726,2]
[380117480,1755551445656,-440.0,0.00019726,2]
[380117481,1755551445665,-480.0,0.00019726,2]
[380117482,1755551445675,-480.0,0.00019726,2]
[380117483,1755551445685,-480.0,0.00019726,2]
[380117484,1755551445695,-480.0,0.00019726,2]
[380117485,1755551445704,-480.0,0.00019726,2]
[380117486,1755551445714,-418.35,0.00019726,2]
[380117487,1755551445724,-480.0,0.00019726,2]
[380117488,1755551445733,-480.0,0.00019726,2]
[380117489,1755551445743,-503.47,0.00019726,2]
[380117490,1755551445753,-480.0,0.00019726,2]
[380117491,1755551445762,-485.31,0.00019726,2]
[380117492,1755551445772,-480.0,0.00019726,2]
[380117493,1755551445782,-515.77,0.00019726,2]
[380117494,1755551445792,-480.0,0.00019726,2]
[380117496,1755551445802,-480.0,0.00019726,2]
[380117498,1755551445811,-480.0,0.00019726,2]
[380117499,1755551445821,-480.0,0.00019726,2]
[380117500,1755551445830,-480.0,0.00019726,2]
[380117501,1755551445840,-480.0,0.00019726,2]
[380117502,1755551445850,-480.0,0.00019726,2]
[380117503,1755551445859,-480.0,0.00019726,2]
[380117504,1755551445869,-480.0,0.00019726,2]
[380117505,1755551445879,-480.0,0.00019726,2]
[380117506,1755551445889,-480.0,0.00019726,2]
[380117507,1755551445899,-480.0,0.00019726,2]
[380117508,1755551445909,-284.66,0.00019726,2]
[380117509,1755551445926,-480.0,0.00019726,2]
[380117510,1755551445938,-480.0,0.00019726,2]
[380117511,1755551445947,-480.0,0.00019726,2]
[380117512,1755551445956,-480.0,0.00019726,2]
[380117513,1755551445966,-524.19849949,0.00019726,2]
[380117514,1755551445975,-480.0,0.00019726,2]
[380117515,1755551445984,-480.0,0.00019726,2]
[380117516,1755551445994,-480.0,0.00019726,2]
[380117517,1755551446004,-480.0,0.00019726,2]
[380117518,1755551446013,-480.0,0.00019726,2]
[380117519,1755551446022,-480.0,0.00019726,2]
[380117520,1755551446032,-480.0,0.00019726,2]
[380117521,1755551446041,-480.0,0.00019726,2]
[380117522,1755551446050,-480.0,0.00019726,2]
[380117523,1755551446060,-480.0,0.00019726,2]
[380117524,1755551446071,-480.0,0.00019726,2]
[380117525,1755551446083,-480.0,0.00019726,2]
[380117526,1755551446092,-480.0,0.00019726,2]
[380117527,1755551446101,-480.0,0.00019726,2]
[380117528,1755551446111,-480.0,0.00019726,2]
[380117529,1755551446120,-480.0,0.00019726,2]
[380117531,1755551446130,-480.0,0.00019726,2]
[380117532,1755551446139,-518.92380147,0.00019726,2]
[380117534,1755551446150,-480.0,0.00019726,2]
[380117536,1755551446159,-480.0,0.00019726,2]
[380117538,1755551446168,-480.0,0.00019726,2]
[380117539,1755551446178,-480.0,0.00019726,2]
[380117540,1755551446187,-480.0,0.00019726,2]
[380117541,1755551446196,-320.33,0.00019726,2]
[380117543,1755551446206,-480.0,0.00019726,2]
[380117544,1755551446215,-480.0,0.00019726,2]
[380117545,1755551446224,-480.0,0.00019726,2]
[380117546,1755551446234,-571.48,0.00019726,2]
[380117547,1755551446243,-480.0,0.00019726,2]
[380117548,1755551446253,-480.0,0.00019726,2]
[380117549,1755551446262,-480.0,0.00019726,2]
[380117550,1755551446271,-480.0,0.00019726,2]
[380117551,1755551446292,-480.0,0.00019726,2]
[380117552,1755551446302,-485.06499445,0.00019726,2]
[380117553,1755551446311,-1097.59545344,0.000199,2]
[380117554,1755551446321,-480.0,0.0002,2]
[380117555,1755551446331,-480.0,0.0002,2]
[380117556,1755551446340,-480.0,0.0002,2]
[380117557,1755551446349,-480.0,0.0002,2]
[380117558,1755551446359,-192.91481767,0.0002,2]
[380117559,1755551446368,-480.0,0.0002,2]
[380117560,1755551446377,-480.0,0.0002,2]
[380117561,1755551446386,-480.0,0.0002,2]
[380117562,1755551446396,-503.47,0.0002,2]
[380117563,1755551446406,-480.0,0.0002,2]
[380117564,1755551446416,-480.0,0.0002,2]
[380117565,1755551446425,-173.28,0.0002,2]
[380117566,1755551446435,-480.0,0.0002,2]
[380117567,1755551446443,-480.0,0.0002,2]
[380117568,1755551446453,-480.0,0.0002,2]
[380117569,1755551446462,-480.0,0.0002,2]
[380117570,1755551446471,-480.0,0.0002,2]
[380117571,1755551446480,-480.0,0.0002,2]
[380117572,1755551446489,-386.94,0.0002,2]
[380117574,1755551446499,-480.0,0.0002,2]
[380117576,1755551446508,-480.0,0.0002,2]
[380117578,1755551446517,-281.94,0.0002,2]
[380117579,1755551446526,-480.0,0.0002,2]
[380117580,1755551446535,-329.74,0.0002,2]
[380117581,1755551446544,-480.0,0.0002,2]
[380117582,1755551446554,-501.65,0.0002,2]
[380117583,1755551446564,-480.0,0.0002,2]
[380117584,1755551446574,-480.0,0.0002,2]
[380117585,1755551446583,-577.45,0.0002,2]
[380117586,1755551446592,-480.0,0.0002,2]
[380117587,1755551446602,-480.0,0.0002,2]
[380117588,1755551446611,-295.782101,0.0002,2]
[380117589,1755551446621,-480.0,0.0002,2]
[380117590,1755551446630,-178.25,0.0002,2]
[380117591,1755551446640,-480.0,0.0002,2]
[380117592,1755551446650,-480.0,0.0002,2]
[380117593,1755551446659,-480.0,0.0002,2]
[380117595,1755551446669,-480.0,0.0002,2]
[380117596,1755551446679,-476.71,0.0002,2]
[380117597,1755551446688,-480.0,0.0002,2]
[380117598,1755551446697,-425.11633921,0.00020099,2]
[380117599,1755551446707,-172.56049,0.00020187,2]
[380117600,1755551446717,-480.0,0.00020273,2]
[380117601,1755551446727,-480.0,0.00020273,2]
[380117602,1755551446737,-480.0,0.00020273,2]
[380117603,1755551446748,-480.0,0.00020273,2]
[380117604,1755551446768,-480.0,0.00020273,2]
[380117605,1755551446779,-480.0,0.00020273,2]
[380117606,1755551446789,-261.06,0.00020273,2]
[380117607,1755551446799,-503.47,0.00020273,2]
[380117608,1755551446808,-480.0,0.00020273,2]
[380117609,1755551446819,-480.0,0.00020273,2]
[380117610,1755551446828,-480.0,0.00020273,2]
[380117611,1755551446838,-480.0,0.00020273,2]
[380117612,1755551446847,-600.95,0.00020273,2]
[380117613,1755551446857,-401.77,0.00020273,2]
[380117614,1755551446866,-480.0,0.00020273,2]
[380117615,1755551446875,-480.0,0.00020273,2]
[380117616,1755551446885,-480.0,0.00020273,2]
[380117617,1755551446894,-311.41,0.00020273,2]
[380117618,1755551446903,-302.55,0.00020273,2]
[380117619,1755551446912,-480.0,0.00020273,2]
[380117620,1755551446922,-234.33,0.00020273,2]
[380117621,1755551446931,-265.45,0.00020273,2]
[380117622,1755551446940,-480.0,0.00020273,2]
[380117623,1755551446949,-480.0,0.00020273,2]
[380117624,1755551446958,-480.0,0.00020273,2]
[380117625,1755551446967,-168.89,0.00020273,2]
[380117626,1755551446976,-480.0,0.00020273,2]
[380117627,1755551446985,-201.95,0.00020273,2]
[380117628,1755551446995,-545.8,0.00020273,2]
[380117629,1755551447004,-480.0,0.00020273,2]
[380117630,1755551447013,-1097.59545337,0.00020316,2]
[380117631,1755551447023,-823.93687518,0.00020516,2]
[380117632,1755551447032,-480.0,0.00020547,2]
[380117633,1755551447041,-480.0,0.00020547,2]
[380117634,1755551447052,-480.0,0.00020547,2]
[380117635,1755551447061,-480.0,0.00020547,2]
[380117636,1755551447070,-480.0,0.00020547,2]
[380117637,1755551447085,-480.0,0.00020547,2]
[380117638,1755551447094,-503.47,0.00020547,2]
[380117639,1755551447104,-480.0,0.00020547,2]
[380117640,1755551447115,-480.0,0.00020547,2]
[380117641,1755551447125,-480.0,0.00020547,2]
[380117642,1755551447135,-436.48,0.00020547,2]
[380117643,1755551447145,-517.49,0.00020547,2]
[380117644,1755551447156,-480.0,0.00020547,2]
[380117645,1755551447167,-480.0,0.00020547,2]
[380117646,1755551447177,-480.0,0.00020547,2]
[380117647,1755551447187,-480.0,0.00020547,2]
[380117648,1755551447197,-480.0,0.00020547,2]
[380117649,1755551447207,-462.53,0.00020547,2]
[380117650,1755551447216,-561.86,0.00020547,2]
[380117651,1755551447225,-216.85420361,0.00020585,2]
[380117652,1755551447235,-215.75323784,0.00020585,2]
[380117653,1755551447244,-160.0,0.00020585,2]
[380117654,1755551447254,-232.18122251,0.00020585,2]
[380117655,1755551447263,-375.82681177,0.00020585,2]
[380117656,1755551447273,-843.81736472,0.00020585,2]
[380117657,1755551447282,-1000.0,0.00020721,2]
[380117658,1755551447291,-1097.59545337,0.00020731,2]
[380117659,1755551447301,-420.0,0.00020792,2]
[380117660,1755551447310,-480.0,0.00020821,2]
[380117661,1755551447319,-480.0,0.00020821,2]
[380117662,1755551447329,-480.0,0.00020821,2]
[380117663,1755551447341,-480.0,0.00020821,2]
[380117664,1755551447350,-480.0,0.00020821,2]
[380117665,1755551447359,-480.0,0.00020821,2]
[380117666,1755551447368,-503.47,0.00020821,2]
[380117667,1755551447378,-217.84,0.00020821,2]
[380117668,1755551447387,-480.0,0.00020821,2]
[380117669,1755551447396,-480.0,0.00020821,2]
[380117670,1755551447406,-480.0,0.00020821,2]
[380117671,1755551447415,-480.0,0.00020821,2]
[380117672,1755551447425,-204.82,0.00020821,2]
[380117673,1755551447435,-480.0,0.00020821,2]
[380117674,1755551447444,-480.0,0.00021095,2]
[380117675,1755551447453,-267.9,0.00021095,2]
[380117676,1755551447463,-480.0,0.00021095,2]
[380117677,1755551447472,-373.27226692,0.00021095,2]
[380117678,1755551447483,-387.2,0.00021095,2]
[380117679,1755551447492,-480.0,0.00021095,2]
[380117680,1755551447501,-503.47,0.00021095,2]
[380117681,1755551447511,-480.0,0.00021095,2]
[380117682,1755551447521,-515.68,0.00021095,2]
[380117683,1755551447531,-480.0,0.00021095,2]
[380117684,1755551447541,-406.3,0.00021095,2]
[380117685,1755551447551,-480.0,0.00021095,2]
[380117686,1755551447560,-3000.0,0.000211,2]
[380117687,1755551447570,-3000.0,0.0002111,2]
[380117688,1755551447579,-3000.0,0.0002112,2]
[380117689,1755551447588,-3067.891161,0.0002113,2]
[380117690,1755551447598,-1097.59545337,0.00021147,2]
[380117691,1755551447607,-480.0,0.00021369,2]
[380117692,1755551447617,-480.0,0.00021369,2]
[380117693,1755551447626,-480.0,0.00021369,2]
[380117694,1755551447635,-480.0,0.00021369,2]
[380117695,1755551447645,-503.47,0.00021369,2]
[380117696,1755551447654,-480.0,0.00021369,2]
[380117697,1755551447664,-480.0,0.00021369,2]
[380117698,1755551447673,-480.0,0.00021369,2]
[380117699,1755551447682,-720.0,0.00021517,20]
[380117700,1755551447692,-1097.59545337,0.00021562,2]
[380117701,1755551447701,-480.0,0.00021643,2]
[380117702,1755551447711,-480.0,0.00021643,2]
[380117703,1755551447721,-355.47,0.00021643,2]
[380117704,1755551447730,-286.97,0.00021643,2]
[380117705,1755551447740,-503.47,0.00021643,2]
[380117706,1755551447749,-480.0,0.00021643,2]
[380117707,1755551447759,-480.0,0.00021643,2]
[380117708,1755551447768,-480.0,0.00021643,2]
[380117709,1755551447778,-480.0,0.00021917,2]
[380117710,1755551447787,-480.0,0.00021917,2]
[380117711,1755551447797,-503.47,0.00021917,2]
[380117712,1755551447806,-480.0,0.00021917,2]
[380117713,1755551447815,-480.0,0.00021917,2]
[380117714,1755551447915,-480.0,0.00021917,2]
[380117715,1755551447926,-823.93687518,0.00021955,2]
[380117716,1755551447937,-1097.59545337,0.00021978,2]
[380117717,1755551447946,-350.28,0.00022,7]
[380117718,1755551447956,-861.77,0.00022,7]
[380117719,1755551447965,-3461.21,0.00022,7]
[380117720,1755551447975,-5966.66,0.00022,2]
[380117721,1755551447985,-150.0,0.00022134,2]
[380117722,1755551447995,-231.642,0.00022177,2]
[380117723,1755551448005,-480.0,0.00022191,2]
[380117724,1755551448015,-480.0,0.00022191,2]
[380117725,1755551448024,-503.47,0.00022191,2]
[380117726,1755551448034,-480.0,0.00022191,2]
[380117727,1755551448044,-480.0,0.00022191,2]
[380117728,1755551448054,-357.38,0.00022191,2]
[380117729,1755551448064,-1097.59545337,0.00022394,2]
[380117730,1755551448080,-480.0,0.00022465,2]
[380117731,1755551448090,-480.0,0.00022465,2]
[380117732,1755551448100,-503.47,0.00022465,2]
[380117733,1755551448110,-359.95,0.00022465,2]
[380117734,1755551448123,-232.06,0.00022465,2]
[380117735,1755551448133,-587.0,0.00022662,2]
[380117736,1755551448143,-480.0,0.00022739,2]
[380117737,1755551448154,-480.0,0.00022739,2]
[380117738,1755551448166,-503.47,0.00022739,2]
[380117739,1755551448178,-1097.59545337,0.00022809,2]
[380117740,1755551448188,-364.97648597,0.00023013,2]
[380117741,1755551448197,-480.0,0.00023013,2]
[380117742,1755551448206,-503.47,0.00023013,2]
[380117743,1755551448215,-1808.5807797,0.00023149,2]
[380117744,1755551448224,-1097.59545337,0.00023225,2]
[380117745,1755551448233,-480.0,0.00023287,2]
[380117746,1755551448242,-503.47,0.00023287,2]
[380117747,1755551448252,-823.93687518,0.00023393,2]
[380117748,1755551448261,-480.0,0.00023561,2]
[380117749,1755551448272,-503.47,0.00023561,2]
[380117750,1755551448282,-500.0,0.00023581,2]
[380117751,1755551448291,-220.937,0.00023582,2]
[380117752,1755551448300,-250.0,0.00023582,2]
[380117753,1755551448310,-261.278,0.00023582,2]
[380117754,1755551448319,-219.175,0.00023582,2]
[380117755,1755551448328,-1097.59545337,0.00023641,2]
[380117756,1755551448338,-864.0,0.00023668,20]
[380117757,1755551448347,-5000.0,0.00023727,2]
[380117758,1755551448356,-480.0,0.00023835,2]
[380117759,1755551448366,-503.47,0.00023835,2]
[380117760,1755551448375,-1097.59545337,0.00024056,2]
[380117761,1755551448384,-600.0,0.00024082,2]
[380117762,1755551448394,-5966.66,0.000241,2]
[380117763,1755551448403,-480.0,0.00024109,2]
[380117764,1755551448413,-503.47,0.00024109,2]
[380117765,1755551448422,-176.08,0.00024146,2]
[380117766,1755551448431,-502.51,0.00024383,2]
[380117767,1755551448440,-503.47,0.00024383,2]
[380117768,1755551448449,-350.28,0.000244,7]
[380117769,1755551448459,-861.77,0.000244,7]
[380117770,1755551448469,-1097.59545337,0.00024472,2]
[380117771,1755551448479,-336.1267003,0.00024603,2]
[380117772,1755551448488,-503.47,0.00024657,2]
[380117773,1755551448498,-3461.21,0.000247,7]
[380117774,1755551448507,-823.0,0.000247,2]
[380117775,1755551448517,-823.93687518,0.00024831,2]
[380117776,1755551448527,-1097.59545337,0.00024887,2]
[380117777,1755551448536,-500.0,0.00024899,2]
[380117778,1755551448546,-500.0,0.00024899,2]
[380117779,1755551448556,-500.0,0.00024899,2]
[380117780,1755551448565,-500.0,0.00024899,2]
[380117781,1755551448575,-500.0,0.00024899,2]
[380117782,1755551448584,-500.0,0.00024899,2]
[380117783,1755551448594,-500.0,0.00024899,2]
[380117784,1755551448605,-500.0,0.00024899,2]
[380117785,1755551448615,-500.0,0.00024899,2]
[380117786,1755551448624,-500.0,0.00024899,2]
[380117787,1755551448634,-500.0,0.00024899,2]
[380117788,1755551448644,-500.0,0.00024899,2]
[380117789,1755551448655,-500.0,0.00024899,2]
[380117790,1755551448664,-500.0,0.00024899,2]
[380117791,1755551448674,-518.46190112,0.00024899,2]
[380117792,1755551448684,-438725.074813,0.000249,2]
[380117793,1755551448693,-204.79625599,0.00024931,2]
[380117794,1755551448703,-503.47,0.00024931,2]
[380117795,1755551448712,-1001.02202395,0.00025,2]
[380117796,1755551448722,-217.32338984,0.00025045,2]
[380117797,1755551448732,-153.0,0.00025083,2]
[380117798,1755551448742,-153.0,0.00025083,2]
[380117799,1755551448751,-2337.41,0.00025158,10]
[380117800,1755551448761,-1947.84,0.00025158,10]
[380117801,1755551448770,-1623.2,0.00025158,10]
[380117802,1755551448779,-600.0,0.00025178,2]
[380117803,1755551448788,-2200.0,0.0002519,2]
[380117804,1755551448797,-503.47,0.00025205,2]
[380117805,1755551448807,-155.78,0.00025223,7]
[380117806,1755551448816,-1097.59545337,0.00025303,3]
[380117807,1755551448825,-155.78,0.00025323,7]
[380117808,1755551448835,-168.0,0.00025392,2]
[380117809,1755551448844,-155.78,0.00025423,7]
[380117810,1755551448853,-232.18122251,0.00025423,7]
[380117811,1755551448862,-375.82681177,0.00025423,7]
[380117812,1755551448872,-216.85420361,0.00025423,7]
[380117813,1755551448881,-503.62,0.00025479,2]
[380117814,1755551448890,-155.79,0.00025523,7]
[380117815,1755551448899,-175.0,0.00025579,2]
[380117816,1755551448911,-800.0,0.00025598,2]
[380117817,1755551448921,-175.0,0.00025637,2]
[380117818,1755551448931,-175.0,0.00025655,2]
[380117819,1755551448940,-175.0,0.00025692,2]
[380117820,1755551448949,-1097.59545337,0.00025719,4]
[380117821,1755551448959,-168.0,0.00025835,2]
[380117822,1755551448967,-175.0,0.00025879,2]
[380117823,1755551448976,-598.25678293,0.000259,2]
[380117824,1755551448985,-115919.90859335,0.000259,14]
[380117825,1755551449174,-328.42957638,0.00019178,2]
[380117826,1755551449186,-151.57042362,0.00019178,2]
[380117827,1755551449196,-480.0,0.00019178,2]
[380117828,1755551449206,-66.46144033,0.00019452,2]
[380117829,1755551449222,-370.888998,0.00019452,2]
[380117840,1755552180015,183.277255,0.00013699,2]
[380117870,1755552429083,-297.89241113,0.00018917,2]
[380117871,1755552434705,5000.0,0.00018555,2]
[380117872,1755552449890,215.85310535,0.00018555,2]
[380117890,1755552525369,22832.11384334,0.00018,2]
[380117891,1755552525403,15030.84134311,0.00018,2]
[380117892,1755552527626,188.118099,0.00027397,120]
[380117907,1755552632541,-1114.56943097,0.000189,2]
[380117908,1755552632551,-302.54622906,0.000189,2]
[380117909,1755552632560,-31.69057674,0.00018917,2]
[380117910,1755552632569,-300.0,0.00018988,2]
[380117911,1755552632579,-300.0,0.00018988,2]
[380117912,1755552632588,-300.0,0.00018988,2]
[380117913,1755552632597,-1200.0,0.00018988,2]
[380117914,1755552632606,-1285.8160752,0.00018989,2]
[380117926,1755552633178,231.0123172,0.0001822,2]
[380117930,1755552638444,-426.31122395,0.00018989,2]
[380117931,1755552638453,-3273.12776909,0.00018989,2]
[380117932,1755552638463,-402.10910332,0.00018999,2]
[380117933,1755552638473,-178.04334676,0.00018999,2]
[380117934,1755552638484,-106155.31247,0.00019,2]